bitfinex-derivatives/quotes_BTCF0:USTF0_20250108
["timestamp","ask_amount","ask_price","bid_price","bid_amount"]
[1736312611369,0.30298721,96462.0,96461.0,0.01]
[1736312611681,0.13457113,96462.0,96461.0,0.01]
[1736312612179,0.092692,96462.0,96461.0,0.01]
[1736312612382,0.03019333,96462.0,96461.0,0.01]
[1736312612767,0.00932334,96462.0,96461.0,0.01]
[1736312613071,0.0471507,96475.0,96461.0,0.01]
[1736312613285,0.0471507,96475.0,96474.0,0.05183]
[1736312613479,0.01236738,96475.0,96474.0,0.05183]
[1736312613679,0.1669869,96475.0,96474.0,0.05183]
[1736312614167,0.07678922,96475.0,96474.0,0.05183]
[1736312614484,0.07678922,96475.0,96474.0,0.27243]
[1736312614982,0.07678922,96475.0,96474.0,0.27543]
[1736312615480,0.07678922,96475.0,96474.0,0.27243]
[1736312615669,0.07678922,96475.0,96474.0,0.27643]
[1736312616064,0.07678922,96475.0,96474.0,0.30260744]
[1736312624183,0.04418045,96475.0,96474.0,0.30260744]
[1736312625184,0.04418045,96475.0,96474.0,0.08200744]
[1736312626977,0.04418045,96475.0,96474.0,0.03017744]
[1736312627184,0.54418045,96475.0,96474.0,0.03017744]
[1736312627479,0.04418045,96475.0,96474.0,0.03017744]
[1736312627778,0.54418045,96475.0,96474.0,0.03017744]
[1736312627979,0.90498045,96475.0,96474.0,0.03017744]
[1736312629685,0.88410566,96475.0,96474.0,0.03017744]
[1736312633387,0.88410566,96475.0,96474.0,0.004]
[1736312634385,0.88410566,96475.0,96443.0,0.465]
[1736312634386,0.10362395,96471.0,96443.0,0.465]
[1736312634683,0.3608,96455.0,96443.0,0.465]
[1736312634886,0.3608,96444.0,96437.0,0.37474773]
[1736312635186,0.96346632,96443.0,96437.0,0.40824481]
[1736312635379,0.96346632,96443.0,96422.0,0.2206]
[1736312635687,0.3608,96432.0,96417.0,0.05341921]
[1736312635879,0.10362395,96430.0,96417.0,0.03564605]
[1736312636081,0.5,96422.0,96417.0,0.03564605]
[1736312636281,0.5,96420.0,96417.0,0.03564605]
[1736312636480,0.65531183,96421.0,96417.0,0.03564605]
[1736312636681,0.15578074,96419.0,96417.0,0.03564605]
[1736312636880,0.3608,96423.0,96417.0,0.03564605]
[1736312637084,0.15578074,96420.0,96417.0,0.03564605]
[1736312637389,0.15578074,96421.0,96417.0,0.03564605]
[1736312637584,0.15529738,96419.0,96417.0,0.03864605]
[1736312637884,0.5,96420.0,96417.0,0.03864605]
[1736312638081,0.15529738,96418.0,96417.0,0.03864605]
[1736312638487,0.65529738,96420.0,96417.0,0.09050905]
[1736312638689,0.15564326,96418.0,96417.0,0.09951005]
[1736312638990,0.15564326,96419.0,96417.0,0.09951005]
[1736312639181,0.15616327,96420.0,96417.0,0.03864605]
[1736312639379,0.15664326,96418.0,96417.0,0.09951005]
[1736312639576,0.001,96418.0,96417.0,0.09951005]
[1736312639782,0.15611977,96418.0,96417.0,0.09951005]
[1736312640786,0.15611977,96418.0,96417.0,0.04764605]
[1736312641189,0.15511977,96418.0,96417.0,0.04764605]
[1736312641691,0.5,96421.0,96417.0,0.04764605]
[1736312641692,0.15596938,96420.0,96417.0,0.03864605]
[1736312641883,0.15596938,96420.0,96417.0,0.04764605]
[1736312642085,0.15596938,96418.0,96417.0,0.04764605]
[1736312642284,0.03387645,96419.0,96417.0,0.04764605]
[1736312642483,0.15596938,96420.0,96417.0,0.04764605]
[1736312642690,0.15487255,96418.0,96417.0,0.04764605]
[1736312642889,0.218,96422.0,96417.0,0.04764605]
[1736312643084,0.15487255,96418.0,96417.0,0.04464605]
[1736312643284,0.15487255,96418.0,96417.0,0.04764605]
[1736312643491,0.15487255,96421.0,96417.0,0.04764605]
[1736312643682,0.65497572,96418.0,96417.0,0.01355521]
[1736312643888,0.15497572,96418.0,96417.0,0.01055521]
[1736312644087,0.2151,96421.0,96401.0,0.2206]
[1736312644393,0.3608,96406.0,96401.0,0.25345092]
[1736312644689,0.15631087,96405.0,96401.0,0.25345092]
[1736312645689,0.65631087,96405.0,96401.0,0.25345092]
[1736312645884,0.15631087,96405.0,96401.0,0.25345092]
[1736312646087,0.15631087,96405.0,96401.0,0.03285092]
[1736312646293,0.65631087,96405.0,96383.0,0.051882]
[1736312646497,0.3608,96397.0,96383.0,0.051882]
[1736312646705,0.5,96396.0,96389.0,0.49908225]
[1736312646885,0.15597398,96396.0,96389.0,0.49908225]
[1736312647088,0.65597398,96396.0,96389.0,0.49908225]
[1736312647490,0.15597398,96396.0,96389.0,0.50508225]
[1736312647689,0.65597398,96396.0,96389.0,0.50508225]
[1736312648097,0.15597398,96396.0,96389.0,0.50508225]
[1736312648287,0.65597398,96396.0,96389.0,0.50508225]
[1736312648487,0.65597398,96396.0,96389.0,0.51008225]
[1736312648792,0.15597398,96396.0,96389.0,0.51008225]
[1736312648993,0.65697398,96396.0,96395.0,0.051876]
[1736312649294,0.001,96396.0,96395.0,0.051876]
[1736312649489,0.11458585,96403.0,96389.0,0.50408225]
[1736312649686,0.15631072,96396.0,96395.0,0.051876]
[1736312649882,0.65631072,96396.0,96395.0,0.051876]
[1736312650083,0.15531072,96403.0,96395.0,0.051876]
[1736312650292,0.2262,96420.0,96395.0,0.056876]
[1736312650293,0.15631072,96396.0,96395.0,0.056876]
[1736312650500,0.15731072,96396.0,96395.0,0.062876]
[1736312650707,0.002,96396.0,96395.0,0.062876]
[1736312650893,0.15788092,96396.0,96395.0,0.062876]
[1736312651286,0.13530788,96396.0,96395.0,0.062876]
[1736312651794,0.11408279,96396.0,96395.0,0.062876]
[1736312651999,0.11408279,96396.0,96395.0,0.057876]
[1736312652202,0.11408279,96396.0,96395.0,0.278476]
[1736312653001,0.11608279,96396.0,96395.0,0.287476]
[1736312654801,0.5,96408.0,96402.0,0.051872]
[1736312654802,0.4066155,96408.0,96402.0,0.051872]
[1736312655199,0.15524998,96407.0,96402.0,0.051872]
[1736312655401,0.15524998,96407.0,96398.0,0.10362395]
[1736312655996,0.15524998,96407.0,96402.0,0.014]
[1736312656194,0.15524998,96407.0,96403.0,0.2221]
[1736312656590,0.15624998,96407.0,96405.0,0.05187]
[1736312658696,0.51704998,96407.0,96403.0,0.005]
[1736312658997,1.01704998,96407.0,96405.0,0.009]
[1736312659806,1.01704998,96407.0,96405.0,0.014]
[1736312660004,1.01704998,96407.0,96405.0,0.005]
[1736312661700,1.01704998,96407.0,96405.0,0.014]
[1736312663197,1.01704998,96407.0,96389.0,0.877839]
[1736312663398,0.3608,96397.0,96394.0,0.03398432]
[1736312663604,0.4468,96396.0,96389.0,0.46516]
[1736312663902,0.60274427,96396.0,96389.0,0.46516]
[1736312664097,1.10274427,96396.0,96389.0,0.46516]
[1736312664499,1.10274427,96396.0,96395.0,0.006]
[1736312665103,1.10274427,96396.0,96395.0,0.013]
[1736312665703,1.10374427,96396.0,96395.0,0.013]
[1736312666110,1.10474427,96396.0,96395.0,0.007]
[1736312666708,1.32144427,96396.0,96389.0,0.03915975]
[1736312667105,1.32044427,96396.0,96395.0,0.002]
[1736312668309,1.31944427,96396.0,96395.0,0.002]
[1736312668510,1.32044427,96396.0,96395.0,0.002]
[1736312668904,1.32044427,96396.0,96395.0,0.006]
[1736312669803,1.32044427,96396.0,96395.0,0.009]
[1736312671305,0.65694427,96396.0,96395.0,0.009]
[1736312671507,0.15694427,96396.0,96395.0,0.009]
[1736312672413,0.15694427,96396.0,96395.0,0.3698]
[1736312672805,0.11691816,96396.0,96395.0,0.3698]
[1736312673201,0.11691816,96396.0,96395.0,0.009]
[1736312673405,0.47771816,96396.0,96395.0,0.009]
[1736312673604,0.97771816,96396.0,96395.0,0.009]
[1736312674004,0.47771816,96396.0,96395.0,0.009]
[1736312674200,0.97771816,96396.0,96395.0,0.009]
[1736312674608,0.47771816,96396.0,96395.0,0.009]
[1736312674915,0.26644992,96396.0,96395.0,0.009]
[1736312675215,0.92241116,96396.0,96395.0,0.009]
[1736312675515,0.15596124,96396.0,96395.0,0.009]
[1736312675815,0.15613711,96398.0,96395.0,0.3698]
[1736312676017,0.15613711,96398.0,96397.0,0.051875]
[1736312676218,0.8608,96405.0,96397.0,0.051875]
[1736312676410,0.15613711,96404.0,96398.0,0.051874]
[1736312676612,0.39969317,96401.0,96400.0,0.051873]
[1736312676808,0.3777409,96401.0,96400.0,0.051873]
[1736312677008,0.15591021,96404.0,96403.0,0.051872]
[1736312677211,0.2166,96413.0,96411.0,0.051867]
[1736312677411,0.73492001,96419.0,96412.0,0.412667]
[1736312677608,0.5,96415.0,96412.0,0.412667]
[1736312678011,0.1558891,96414.0,96412.0,0.412667]
[1736312678413,0.1558891,96417.0,96412.0,0.412667]
[1736312678815,0.5,96417.0,96412.0,0.412667]
[1736312679022,0.15488211,96416.0,96412.0,0.416667]
[1736312679422,0.65488211,96416.0,96412.0,0.055867]
[1736312679622,0.5,96416.0,96412.0,0.055867]
[1736312679813,0.36982115,96415.0,96412.0,0.055867]
[1736312680214,0.2139,96415.0,96412.0,0.004]
[1736312680610,0.15592115,96414.0,96412.0,0.004]
[1736312681218,0.65592115,96414.0,96412.0,0.004]
[1736312681420,0.15592115,96414.0,96412.0,0.004]
[1736312681823,0.65592115,96414.0,96412.0,0.004]
[1736312682110,0.15592115,96414.0,96404.0,0.051871]
[1736312682316,0.15592115,96414.0,96412.0,0.004]
[1736312682317,0.65592115,96414.0,96412.0,0.004]
[1736312682724,0.15592115,96414.0,96412.0,0.004]
[1736312682921,0.65592115,96414.0,96412.0,0.004]
[1736312683129,0.15592115,96414.0,96412.0,0.004]
[1736312683518,0.3608,96413.0,96400.0,0.02831896]
[1736312683717,0.3608,96413.0,96399.0,0.3608]
[1736312683718,0.3608,96404.0,96397.0,0.46664]
[1736312683914,0.5,96403.0,96382.0,0.2206]
[1736312684119,0.8608,96394.0,96382.0,0.2206]
[1736312684326,0.10362395,96392.0,96382.0,0.2206]
[1736312684616,0.5,96382.0,96372.0,0.46532]
[1736312684923,0.5,96373.0,96372.0,0.46532]
[1736312685131,0.5,96373.0,96359.0,0.051895]
[1736312685327,0.5,96371.0,96359.0,0.051895]
[1736312685723,0.15579546,96370.0,96359.0,0.051895]
[1736312686027,0.3608,96369.0,96359.0,0.051895]
[1736312686327,0.3608,96369.0,96363.0,0.5]
[1736312686328,0.51659546,96369.0,96363.0,0.5]
[1736312686528,1.01659546,96369.0,96363.0,0.5]
[1736312686733,0.2298,96368.0,96363.0,0.5]
[1736312686936,0.38581773,96368.0,96363.0,0.5]
[1736312687129,0.38581773,96368.0,96364.0,0.3608]
[1736312687334,0.88581773,96368.0,96364.0,0.3608]
[1736312687729,0.38581773,96368.0,96364.0,0.3608]
[1736312687927,0.88581773,96368.0,96364.0,0.3608]
[1736312688235,0.38581773,96368.0,96364.0,0.3608]
[1736312688538,0.88681773,96368.0,96364.0,0.3608]
[1736312688930,0.38681773,96368.0,96364.0,0.3608]
[1736312689131,0.88681773,96368.0,96364.0,0.3608]
[1736312689335,0.88781773,96368.0,96364.0,0.3668]
[1736312689536,0.38781773,96368.0,96364.0,0.3668]
[1736312689838,0.88781773,96368.0,96364.0,0.3668]
[1736312690039,0.38781773,96368.0,96364.0,0.3668]
[1736312690235,0.88781773,96368.0,96364.0,0.3668]
[1736312690435,0.65801773,96368.0,96364.0,0.3668]
[1736312690636,0.15801773,96368.0,96365.0,0.271892]
[1736312690836,0.65801773,96368.0,96365.0,0.271892]
[1736312691141,0.15801773,96368.0,96367.0,0.051891]
[1736312692343,0.15701773,96368.0,96367.0,0.051891]
[1736312692546,0.15801773,96368.0,96367.0,0.054891]
[1736312692835,0.48763844,96371.0,96369.0,0.05189]
[1736312693233,0.15640269,96370.0,96369.0,0.05189]
[1736312694238,0.15640269,96370.0,96369.0,0.41269]
[1736312694534,0.15640269,96370.0,96369.0,0.41669]
[1736312694940,0.15740269,96370.0,96369.0,0.42169]
[1736312695638,0.15840269,96370.0,96369.0,0.42169]
[1736312699841,0.15840269,96370.0,96369.0,0.44743272]
[1736312701643,0.1168665,96370.0,96369.0,0.44743272]
[1736312703746,0.07439425,96370.0,96369.0,0.44743272]
[1736312703948,0.04573815,96370.0,96369.0,0.44743272]
[1736312704250,0.01813257,96370.0,96369.0,0.44743272]
[1736312706940,0.5,96379.0,96378.0,0.051885]
[1736312707135,0.5,96379.0,96378.0,0.412685]
[1736312707349,0.65473039,96379.0,96378.0,0.412685]
[1736312708047,0.65573039,96379.0,96378.0,0.416685]
[1736312708240,0.65573039,96379.0,96378.0,0.420685]
[1736312708439,0.15573039,96379.0,96378.0,0.420685]
[1736312709049,0.65573039,96379.0,96378.0,0.420685]
[1736312709351,0.15573039,96379.0,96378.0,0.420685]
[1736312709737,0.5,96382.0,96381.0,0.051884]
[1736312709943,0.5,96391.0,96390.0,0.051879]
[1736312710143,0.1117288,96392.0,96390.0,0.412679]
[1736312710353,0.15544808,96391.0,96390.0,0.412679]
[1736312711243,0.15544808,96391.0,96390.0,0.3608]
[1736312711445,0.501,96391.0,96390.0,0.006]
[1736312711741,0.15720396,96391.0,96390.0,0.008]
[1736312712048,0.65720396,96391.0,96390.0,0.008]
[1736312712354,0.15720396,96391.0,96390.0,0.008]
[1736312712653,0.65720396,96391.0,96390.0,0.008]
[1736312712946,0.15720396,96391.0,96390.0,0.008]
[1736312713253,0.65720396,96391.0,96390.0,0.008]
[1736312713444,0.65720396,96391.0,96390.0,0.3688]
[1736312713640,0.15720396,96391.0,96390.0,0.3688]
[1736312713837,0.15720396,96391.0,96390.0,0.008]
[1736312714352,0.65720396,96391.0,96390.0,0.008]
[1736312714548,0.15720396,96391.0,96390.0,0.008]
[1736312715854,0.12346673,96391.0,96390.0,0.008]
[1736312716356,0.49099999,96399.0,96391.0,0.051878]
[1736312716653,0.5,96404.0,96403.0,0.051872]
[1736312717149,0.1117288,96407.0,96405.0,0.051871]
[1736312717352,0.4631,96408.0,96405.0,0.051871]
[1736312717546,0.15486196,96406.0,96405.0,0.051871]
[1736312717945,0.15486196,96407.0,96405.0,0.051871]
[1736312718139,0.15486196,96407.0,96398.0,0.3608]
[1736312718140,0.154783,96406.0,96398.0,0.412676]
[1736312718346,0.154783,96406.0,96405.0,0.001]
[1736312718551,0.154783,96407.0,96405.0,0.001]
[1736312719055,0.15513306,96406.0,96405.0,0.001]
[1736312719354,0.11224881,96407.0,96405.0,0.001]
[1736312719554,0.15513306,96406.0,96405.0,0.001]
[1736312719752,0.65513306,96406.0,96405.0,0.001]
[1736312719959,0.15513306,96406.0,96405.0,0.001]
[1736312720361,0.5,96406.0,96404.0,0.051872]
[1736312720550,0.15485395,96406.0,96405.0,0.002]
[1736312720747,0.15485395,96406.0,96405.0,0.053872]
[1736312720952,0.456,96406.0,96405.0,0.053872]
[1736312721257,1.11172799,96406.0,96405.0,0.053872]
[1736312721446,0.61172799,96406.0,96405.0,0.053872]
[1736312721642,0.61172799,96406.0,96405.0,0.054872]
[1736312721846,1.11172799,96406.0,96405.0,0.054872]
[1736312722048,1.11172799,96406.0,96405.0,0.052872]
[1736312722655,1.47252799,96406.0,96404.0,0.004]
[1736312722859,1.47252799,96406.0,96390.0,0.59606165]
[1736312723053,0.3608,96397.0,96390.0,0.37546165]
[1736312723248,0.2398,96396.0,96390.0,0.37546165]
[1736312723451,0.3948492,96396.0,96381.0,0.02546689]
[1736312723658,0.3948492,96396.0,96379.0,0.051886]
[1736312723659,0.8948492,96396.0,96379.0,0.051886]
[1736312723860,0.3608,96383.0,96379.0,0.051886]
[1736312724060,0.2413,96382.0,96372.0,0.051889]
[1736312724256,0.5,96373.0,96364.0,0.82704]
[1736312724462,0.744,96372.0,96365.0,0.051893]
[1736312724759,0.3991362,96372.0,96365.0,0.051893]
[1736312724959,0.8991362,96372.0,96365.0,0.051893]
[1736312725362,0.3991362,96372.0,96365.0,0.051893]
[1736312725558,0.8991362,96372.0,96364.0,0.82704]
[1736312725856,0.8991362,96372.0,96366.0,0.00855617]
[1736312725857,0.4001362,96372.0,96366.0,0.00855617]
[1736312726262,0.9001362,96372.0,96366.0,0.00855617]
[1736312726460,0.4011362,96372.0,96366.0,0.01455617]
[1736312726763,0.3608,96367.0,96349.0,0.051902]
[1736312726954,0.3608,96358.0,96349.0,0.051902]
[1736312727157,0.7364,96357.0,96349.0,0.051902]
[1736312727457,0.5,96348.0,96343.0,0.38643459]
[1736312727665,0.5,96347.0,96343.0,0.38643459]
[1736312727868,0.65603335,96347.0,96343.0,0.38643459]
[1736312728059,0.15603335,96347.0,96346.0,0.051904]
[1736312728267,0.65603335,96347.0,96346.0,0.051904]
[1736312728563,0.5,96347.0,96346.0,0.051904]
[1736312728955,0.15696522,96347.0,96346.0,0.051904]
[1736312729264,0.65696522,96347.0,96346.0,0.051904]
[1736312729566,0.65796522,96347.0,96346.0,0.053904]
[1736312730963,0.65796522,96347.0,96346.0,0.058904]
[1736312731166,0.27806522,96347.0,96346.0,0.058904]
[1736312731362,0.61169888,96357.0,96356.0,0.051898]
[1736312731664,0.11169888,96357.0,96356.0,0.412698]
[1736312731869,0.2681121,96357.0,96356.0,0.412698]
[1736312732662,0.2701121,96357.0,96356.0,0.417698]
[1736312732864,0.15841322,96357.0,96356.0,0.417698]
[1736312734171,0.15841322,96357.0,96356.0,0.3658]
[1736312734669,0.65841322,96357.0,96356.0,0.005]
[1736312734861,0.51921322,96357.0,96356.0,0.005]
[1736312735561,1.01921322,96357.0,96356.0,0.005]
[1736312736261,0.65841322,96357.0,96356.0,0.005]
[1736312739876,1.01921322,96357.0,96346.0,0.051903]
[1736312740075,0.2492,96356.0,96346.0,0.051903]
[1736312740277,0.3608,96347.0,96338.0,0.517268]
[1736312740473,0.9872,96346.0,96338.0,0.46536]
[1736312740673,0.6423308,96346.0,96339.0,0.051907]
[1736312740875,1.1423308,96346.0,96339.0,0.051907]
[1736312741176,1.1423308,96346.0,96325.0,0.3608]
[1736312741378,0.3608,96339.0,96325.0,0.3608]
[1736312741678,0.5,96329.0,96325.0,0.3608]
[1736312742073,0.5,96329.0,96319.0,0.051918]
[1736312742074,0.15532375,96328.0,96319.0,0.051918]
[1736312742274,0.5,96325.0,96318.0,0.00155696]
[1736312742474,0.4976,96324.0,96318.0,0.00155696]
[1736312742774,0.65292375,96324.0,96318.0,0.00155696]
[1736312743470,1.15292375,96324.0,96318.0,0.00155696]
[1736312745171,0.3608,96320.0,96311.0,0.02170246]
[1736312745369,0.3608,96320.0,96304.0,0.3614]
[1736312745574,0.5,96310.0,96304.0,0.38273097]
[1736312745984,0.5,96304.0,96300.0,0.1]
[1736312746182,0.3608,96305.0,96300.0,0.1]
[1736312746377,0.15475786,96303.0,96300.0,0.1]
[1736312746576,0.65475786,96304.0,96300.0,0.1]
[1736312746987,0.3608,96305.0,96300.0,0.1]
[1736312747178,0.15505113,96303.0,96300.0,0.1]
[1736312747578,0.15565114,96304.0,96300.0,0.1]
[1736312747777,0.5,96303.0,96300.0,0.1]
[1736312747979,0.15500186,96302.0,96300.0,0.1]
[1736312748188,0.15552187,96303.0,96300.0,0.101]
[1736312748370,0.5,96302.0,96300.0,0.152928]
[1736312748576,0.15500186,96301.0,96300.0,0.152928]
[1736312748776,0.15552187,96302.0,96300.0,0.152928]
[1736312748976,0.001,96303.0,96302.0,0.051927]
[1736312749382,0.15709767,96303.0,96302.0,0.051927]
[1736312750087,0.15709767,96303.0,96300.0,0.1]
[1736312750286,0.001,96301.0,96300.0,0.101]
[1736312750682,0.15742792,96301.0,96300.0,0.101]
[1736312750879,0.15742792,96301.0,96282.0,0.4658]
[1736312751080,0.3608,96288.0,96282.0,0.2452]
[1736312751380,0.3608,96288.0,96282.0,0.02015199]
[1736312751584,0.15524941,96287.0,96282.0,0.051936]
[1736312751989,0.15524941,96287.0,96284.0,0.051935]
[1736312752185,0.65524941,96287.0,96284.0,0.051935]
[1736312752687,0.15624941,96287.0,96284.0,0.051935]
[1736312752885,0.65624941,96287.0,96284.0,0.051935]
[1736312753089,0.15624941,96287.0,96282.0,0.001]
[1736312753280,0.65624941,96287.0,96282.0,0.001]
[1736312753588,0.5,96278.0,96261.0,0.2299]
[1736312753788,0.3608,96266.0,96261.0,0.2299]
[1736312754287,0.16102391,96265.0,96261.0,0.2299]
[1736312755289,0.66102391,96265.0,96261.0,0.2299]
[1736312755492,0.16102391,96265.0,96261.0,0.2299]
[1736312755888,0.66102391,96265.0,96261.0,0.2299]
[1736312756094,0.16202391,96265.0,96261.0,0.2299]
[1736312756482,0.66302391,96265.0,96261.0,0.2299]
[1736312756890,0.16302391,96265.0,96261.0,0.2299]
[1736312757088,0.66302391,96265.0,96261.0,0.2299]
[1736312757289,0.65784438,96265.0,96263.0,0.051945]
[1736312757593,0.65784438,96265.0,96263.0,0.412745]
[1736312757594,0.15784438,96265.0,96263.0,0.412745]
[1736312759991,0.15784438,96265.0,96264.0,0.2206]
[1736312760600,0.86140001,96278.0,96265.0,0.051946]
[1736312760795,0.8608,96278.0,96268.0,0.2072479]
[1736312760995,0.8608,96278.0,96277.0,0.05194]
[1736312761495,1.01707238,96278.0,96277.0,0.05194]
[1736312761694,0.65627238,96278.0,96277.0,0.05194]
[1736312761900,0.5,96289.0,96287.0,0.051934]
[1736312762304,0.15583961,96288.0,96287.0,0.051934]
[1736312762597,0.5,96301.0,96300.0,0.051927]
[1736312762803,0.5,96301.0,96300.0,0.412727]
[1736312763005,0.1564267,96301.0,96300.0,0.3608]
[1736312763299,0.5,96303.0,96300.0,0.3608]
[1736312763495,0.1564267,96302.0,96301.0,0.051927]
[1736312763694,0.5,96303.0,96301.0,0.051927]
[1736312763901,0.15584339,96302.0,96301.0,0.051927]
[1736312764306,0.5,96310.0,96309.0,0.051922]
[1736312764605,0.50155853,96312.0,96311.0,0.051921]
[1736312764802,0.5,96312.0,96311.0,0.051921]
[1736312765005,0.15629597,96312.0,96311.0,0.272521]
[1736312765198,0.5,96324.0,96322.0,0.051915]
[1736312765394,0.51709597,96323.0,96311.0,0.2206]
[1736312765601,0.15629597,96312.0,96311.0,0.272521]
[1736312765807,0.001,96312.0,96311.0,0.24089963]
[1736312766111,0.15684055,96312.0,96311.0,0.2206]
[1736312766307,0.15584055,96312.0,96311.0,0.2206]
[1736312766610,0.3608,96319.0,96309.0,0.003]
[1736312766906,0.3608,96310.0,96309.0,0.10662395]
[1736312767095,0.3608,96310.0,96309.0,0.003]
[1736312767301,1.01644349,96310.0,96309.0,0.003]
[1736312767500,0.65564349,96310.0,96309.0,0.003]
[1736312767704,0.15564349,96310.0,96309.0,0.003]
[1736312767910,0.65564349,96310.0,96304.0,0.051922]
[1736312768110,0.5,96310.0,96304.0,0.051922]
[1736312768305,0.65495203,96309.0,96304.0,0.051922]
[1736312768513,0.15495203,96309.0,96304.0,0.051922]
[1736312768703,0.5,96309.0,96304.0,0.051922]
[1736312768905,0.15476662,96308.0,96300.0,0.48473991]
[1736312769210,0.15476662,96308.0,96307.0,0.051921]
[1736312769712,0.15476662,96309.0,96307.0,0.051921]
[1736312770016,0.65576662,96309.0,96308.0,0.3608]
[1736312770211,0.001,96309.0,96308.0,0.6068]
[1736312770401,0.5,96320.0,96319.0,0.051914]
[1736312770599,0.5,96329.0,96328.0,0.051909]
[1736312770909,0.656326,96329.0,96328.0,0.051909]
[1736312772404,0.656326,96329.0,96328.0,0.413709]
[1736312772716,0.657326,96329.0,96328.0,0.052909]
[1736312774001,0.518126,96329.0,96328.0,0.001]
[1736312774306,1.018126,96329.0,96328.0,0.001]
[1736312776402,0.157326,96329.0,96328.0,0.001]
[1736312778813,0.518126,96329.0,96328.0,0.001]
[1736312779708,0.518126,96329.0,96310.0,0.10362395]
[1736312779915,0.3608,96318.0,96310.0,0.10362395]
[1736312780103,0.3608,96318.0,96293.0,0.4958]
[1736312780104,0.2341,96317.0,96308.0,0.10362395]
[1736312780310,0.39039095,96317.0,96308.0,0.10362395]
[1736312780506,0.89039095,96317.0,96308.0,0.10362395]
[1736312780914,0.39039095,96317.0,96308.0,0.10362395]
[1736312781115,0.89039095,96317.0,96308.0,0.10362395]
[1736312781316,0.89039095,96317.0,96314.0,0.003]
[1736312781517,0.39039095,96317.0,96314.0,0.003]
[1736312781822,1.00216663,96317.0,96315.0,0.051916]
[1736312782314,0.76806663,96317.0,96315.0,0.051916]
[1736312782905,1.01526663,96317.0,96315.0,0.051916]
[1736312783112,1.01526663,96317.0,96313.0,0.46844]
[1736312783316,1.01526663,96317.0,96313.0,0.46784]
[1736312783514,0.90349095,96317.0,96313.0,0.46784]
[1736312784820,0.40349095,96317.0,96316.0,0.051915]
[1736312785022,0.15729095,96317.0,96316.0,0.412715]
[1736312786417,0.7566,96341.0,96316.0,0.712715]
[1736312786608,0.7566,96341.0,96339.0,0.051903]
[1736312786812,0.91139379,96341.0,96339.0,0.051903]
[1736312787208,0.5,96340.0,96339.0,0.051903]
[1736312787506,0.6555763,96340.0,96339.0,0.051903]
[1736312787918,0.1555763,96340.0,96339.0,0.051903]
[1736312788333,0.15583478,96346.0,96337.0,0.051904]
[1736312788626,0.15583478,96340.0,96339.0,0.051903]
[1736312788926,0.5,96347.0,96345.0,0.0519]
[1736312789123,0.5,96352.0,96346.0,0.3608]
[1736312789323,0.5,96352.0,96347.0,0.2206]
[1736312789527,0.5,96359.0,96358.0,0.051893]
[1736312790027,0.1563255,96359.0,96358.0,0.412693]
[1736312790429,0.2498,96361.0,96358.0,0.412693]
[1736312790727,0.15575117,96359.0,96358.0,0.412693]
[1736312790911,0.2498,96361.0,96358.0,0.412693]
[1736312791316,0.15645453,96359.0,96358.0,0.412693]
[1736312791512,0.15645453,96360.0,96358.0,0.412693]
[1736312791726,0.15645453,96359.0,96358.0,0.412693]
[1736312791918,0.15645453,96359.0,96358.0,0.413693]
[1736312792118,0.15504562,96360.0,96358.0,0.413693]
[1736312792424,0.15504562,96359.0,96358.0,0.001]
[1736312792623,0.001,96359.0,96358.0,0.008]
[1736312792921,0.15604562,96359.0,96358.0,0.009]
[1736312793130,0.2335,96359.0,96358.0,0.009]
[1736312793332,0.88928505,96359.0,96358.0,0.009]
[1736312793625,0.38928505,96359.0,96358.0,0.009]
[1736312793824,0.39028505,96359.0,96358.0,0.009]
[1736312794024,0.89028505,96359.0,96349.0,0.46568]
[1736312794218,0.3608,96350.0,96349.0,0.46568]
[1736312794419,0.8608,96350.0,96349.0,0.46568]
[1736312794618,0.51715053,96350.0,96349.0,0.46568]
[1736312795527,1.01715053,96350.0,96349.0,0.46568]
[1736312796329,1.01715053,96350.0,96334.0,0.3608]
[1736312796527,0.3608,96342.0,96334.0,0.38071412]
[1736312796730,0.2465,96341.0,96334.0,0.38071412]
[1736312797034,0.4023605,96341.0,96334.0,0.38071412]
[1736312797327,0.9023605,96341.0,96334.0,0.38071412]
[1736312797630,0.4023605,96341.0,96334.0,0.38071412]
[1736312797929,0.9023605,96341.0,96334.0,0.01991412]
[1736312798122,0.4023605,96341.0,96330.0,0.2072479]
[1736312798428,0.4023605,96341.0,96336.0,0.051904]
[1736312798628,0.5,96340.0,96336.0,0.051904]
[1736312799020,0.65599763,96339.0,96336.0,0.051904]
[1736312799426,0.15599763,96339.0,96336.0,0.051904]
[1736312799625,0.50052001,96340.0,96337.0,0.051903]
[1736312799833,0.5,96339.0,96337.0,0.051903]
[1736312800018,0.15475743,96338.0,96337.0,0.051903]
[1736312800224,0.65527744,96339.0,96337.0,0.051903]
[1736312800427,0.5,96339.0,96337.0,0.051903]
[1736312800729,0.1564238,96338.0,96337.0,0.051903]
[1736312801521,0.5172238,96338.0,96330.0,0.02504067]
[1736312801721,0.2487,96337.0,96327.0,0.3608]
[1736312801921,0.3608,96328.0,96320.0,0.10362395]
[1736312802327,0.15643539,96327.0,96320.0,0.10362395]
[1736312803133,0.65643539,96327.0,96320.0,0.10662395]
[1736312803523,0.15743539,96327.0,96320.0,0.10762395]
[1736312803731,0.65743539,96327.0,96320.0,0.13285294]
[1736312804128,0.15743539,96327.0,96320.0,0.13285294]
[1736312804328,0.65743539,96327.0,96320.0,0.13285294]
[1736312804529,0.15743539,96327.0,96320.0,0.12985294]
[1736312804732,0.15743539,96327.0,96320.0,0.13185294]
[1736312804927,0.65743539,96327.0,96320.0,0.02822899]
[1736312805135,0.15743539,96327.0,96320.0,0.003]
[1736312805437,0.65743539,96327.0,96320.0,0.003]
[1736312805626,0.65743539,96327.0,96320.0,0.002]
[1736312805627,0.15643539,96327.0,96320.0,0.002]
[1736312805828,0.15743539,96327.0,96320.0,0.003]